Workbook

Sheet 表1.一般公共预算收入表
A1: 表1
A2: 2023年槐荫区一般公共预算收入决算表
F3: 单位：万元
A4: 项目 | B4: 2023年预期数 | C4: 2023年调整预期数 | D4: 2023年决算数 | I4: 2022年决算
D5: 金额 | E5: 占调整预期% | F5: 比上年增长%
A6: 一、增值税 | B6: 168,167 | C6: 168,167 | D6: 202,543 | E6: =D6/C6*100 -> 120.4 | F6: =(D6-I6)/I6*100 -> 47.5 | G6: 179824.85 | H6: =D6/G6*100-100 -> 12.63 | I6: 137,297
A7: 二、营业税 | G7: 468.1 | H7: =D7/G7*100-100 -> -100.00
A8: 三、企业所得税 | B8: 58,226 | C8: 58,226 | D8: 54,079 | E8: =D8/C8*100 -> 92.9 | F8: =(D8-I8)/I8*100 -> 4.8 | G8: 54864.45 | H8: =D8/G8*100-100 -> -1.43 | I8: 51,614
A9: 四、个人所得税 | B9: 33,775 | C9: 33,775 | D9: 31,741 | E9: 94.0 | F9: =(D9-I9)/I9*100 -> 5.9 | G9: 25513.28 | H9: 24.41 | I9: 29,978
A10: 五、资源税 | B10: 372 | C10: 372 | D10: 326 | E10: 87.8 | F10: -0.8 | G10: 169.8 | H10: 92.23 | I10: 329
A11: 六、城市维护建设税 | B11: 27,174 | C11: 27,174 | D11: 25,565 | E11: 94.1 | F11: 5.8 | G11: 25514.37 | H11: 0.20 | I11: 24,157
A12: 七、房产税 | B12: 24,815 | C12: 24,815 | D12: 21,890 | E12: 88.2 | F12: -0.5 | G12: 16995.79 | H12: 28.79 | I12: 21,998
A13: 八、印花税 | B13: 9,011 | C13: 9,011 | D13: 10,471 | E13: 116.2 | F13: 31.1 | G13: 6195.75 | H13: 69.01 | I13: 7,990
A14: 九、城镇土地使用税 | B14: 14,942 | C14: 14,942 | D14: 13,368 | E14: 89.5 | F14: 1.0 | G14: 18906.68 | H14: -29.29 | I14: 13,230
A15: 十、土地增值税 | B15: 71,732 | C15: 71,732 | D15: 72,019 | E15: 100.4 | F15: 60.3 | G15: 33827.96 | H15: 112.90 | I15: 44,926
A16: 十一、车船税 | B16: 2,749 | C16: 2,749 | D16: 1,025 | E16: 37.3 | F16: -57.9 | G16: 195.8 | H16: 423.26 | I16: 2,433
A17: 十二、耕地占用税 | B17: 2,165 | C17: 2,165 | D17: 614 | E17: 28.3 | F17: -68.0 | G17: 4588.68 | H17: -86.62 | I17: 1,916
A18: 十三、契税 | B18: 97,519 | C18: 97,519 | D18: 62,851 | E18: 64.5 | F18: -19.2 | G18: 101408.65 | H18: -38.02 | I18: 77,804
A19: 十四、环保税 | B19: 141 | C19: 141 | D19: 99 | E19: 70.4 | F19: -20.5 | G19: 38 | H19: 161.63 | I19: 125
A20: 十五、其他税收 | B20: 342 | C20: 342 | D20: 185 | E20: 53.9 | F20: -39.1 | I20: 303
A21: 十六、专项收入 | B21: 15,297 | C21: 15,297 | D21: 15,293 | E21: 100.0 | F21: 3.5 | I21: 14,773
A22: 十七、行政事业性收费收入 | B22: 16,663 | C22: 16,663 | D22: 17,966 | E22: 107.8 | F22: 9.2 | I22: 16,446
A23: 十八、罚没收入 | B23: 1,499 | C23: 1,499 | D23: 5,576 | E23: 372.0 | F23: 290.2 | I23: 1,429
A24: 十九、国有资本经营收入 | B24: 0 | C24: 0 | D24: 322
A25: 二十、国有资源（资产）有偿使用收入 | B25: 20,444 | C25: 20,444 | D25: 30,348 | E25: =D25/C25*100 -> 148.4 | F25: -43.6 | I25: 53,764
A26: 二十一、捐赠 | B26: 17 | C26: 17 | D26: 16 | E26: 91.5 | F26: 3.4 | I26: 15
A27: 二十二、其他收入 | B27: 1,080 | C27: 1,080 | D27: 1,096 | E27: 101.5 | F27: 14.7 | I27: 956
A28: 一般公共预算收入合计 | B28: =SUM(B6:B27) -> 566,130 | C28: =SUM(C6:C27) -> 566,130 | D28: =SUM(D6:D27) -> 567,393 | E28: 100.2 | F28: 13.1 | I28: 501,483
A29: 债务收入 | B29: 12,000 | C29: 12,000 | D29: 12,000 | E29: 100.0 | F29: 71.4 | I29: 7,000
A30: 地方政府债券收入 | B30: 12,000 | C30: 12,000 | D30: 12,000 | E30: 100.0 | F30: 71.4 | I30: 7,000
A31: 转移性收入 | B31: =SUM(B32:B36) -> 44,714 | C31: =SUM(C32:C36) -> 44,714 | D31: =SUM(D32:D36) -> 174,053 | E31: 389.3 | F31: -20.1 | I31: 217,944
A32: 返还性收入 | B32: 38,465 | C32: 38,465 | D32: 38,465 | E32: 100.0 | F32: 0.0 | I32: 38,465
A33: 一般性转移支付收入 | B33: 5,387 | C33: 5,387 | D33: 57,470 | E33: 1,066.8 | F33: -46.0 | I33: 106,481
A34: 专项转移支付收入 | D34: 27,051 | F34: -22.4 | I34: 34,866
A35: 区域间转移性收入 | D35: 291 | I35: 162
A36: 调用预算稳定调节基金及调入资金 | B36: 862 | C36: 862 | D36: 50,776 | E36: =D36/C36*100 -> 5,890.5 | F36: 33.7 | I36: 37,970
A37: 上年结转及结余收入 | B37: 29,600 | C37: 29,600 | D37: 36,184 | E37: =D37/C37*100 -> 122.2 | F37: 195.1 | I37: 12,260
A38: 总收入合计 | B38: =B28+B31+B37+B29 -> 652,444 | C38: =C28+C31+C37+C29 -> 652,444 | D38: =D28+D29+D31+D37 -> 789,630 | E38: =D38/C38*100 -> 121.0 | F38: 6.9 | I38: 738,687

Sheet 表2.一般公共预算支出表
A1: 表2
A2: 2023年槐荫区一般公共预算支出决算表
E3: 单位：万元
A4: 项目 | B4: 2023年调整预算数 | C4: 2023年决算数（含转移支付） | F4: 2022决算数
C5: 金额 | D5: 占调整预算% | E5: 比上年同比增长%
A6: 一、一般公共服务支出 | B6: 69,517 | C6: 79,360 | D6: =C6/B6*100 -> 114.2 | E6: =(C6-F6)/F6*100 -> 15.7 | F6: 68,574
A7: 二、国防支出 | B7: 160 | C7: 823 | D7: 514.4 | E7: 824.7 | F7: 89
A8: 三、公共安全支出 | B8: 14,709 | C8: 16,233 | D8: 110.4 | E8: 85.7 | F8: 8,740
A9: 四、教育支出 | B9: 111,296 | C9: 121,040 | D9: 108.8 | E9: 0.4 | F9: 120,584
A10: 五、科学技术支出 | B10: 2,468 | C10: 2,015 | D10: 81.7 | E10: 31.2 | F10: 1,536
A11: 六、文化旅游体育与传媒支出 | B11: 1,840 | C11: 2,372 | D11: 128.9 | E11: 16.1 | F11: 2,043
A12: 七、社会保障和就业支出 | B12: 108,809 | C12: 127,949 | D12: 117.6 | E12: 34.6 | F12: 95,056
A13: 八、卫生健康支出 | B13: 47,996 | C13: 62,333 | D13: 129.9 | E13: -1.2 | F13: 63,077
A14: 九、节能环保支出 | B14: 7,935 | C14: 2,896 | D14: 36.5 | E14: -67.2 | F14: 8,828
A15: 十、城乡社区支出 | B15: 28,115 | C15: 36,705 | D15: 130.6 | E15: 37.1 | F15: 26,770
A16: 十一、农林水支出 | B16: 7,350 | C16: 13,383 | D16: 182.1 | E16: 0.1 | F16: 13,375
A17: 十二、交通运输支出 | B17: 152 | C17: 62 | D17: 40.9 | E17: 3.3 | F17: 60
A18: 十三、资源勘探信息等支出 | B18: 5,815 | C18: 6,015 | D18: 103.4 | E18: 7.4 | F18: 5,598
A19: 十四、商业服务业等支出 | C19: 1,335 | E19: -23.9 | F19: 1,755
A20: 十五、金融支出 | B20: 236 | C20: 217 | D20: =C20/B20*100 -> 91.9 | E20: -38.9 | F20: 355
A21: 十六、援助其他地区支出 | C21: 737 | E21: 0.0 | F21: 737
A22: 十七、自然资源海洋气象等支出 | B22: 1,858 | C22: 2,032 | D22: 109.4 | E22: 3.5 | F22: 1,963
A23: 十八、住房保障支出 | B23: 13,771 | C23: 16,380 | D23: 118.9 | E23: -2.8 | F23: 16,847
A24: 十九、粮油物资储备支出 | C24: 100
A25: 二十、灾害防治及应急管理支出 | B25: 1,961 | C25: 1,877 | D25: =C25/B25*100 -> 95.7 | E25: =(C25-F25)/F25*100 -> 168.1 | F25: 700
A26: 二十一、预备费 | B26: 10,000 | C26: 0
A27: 二十二、债务付息支出 | B27: 1,829 | C27: 1,829 | D27: 100.0 | E27: -4.0 | F27: 1,906
A28: 二十三、其他支出（含街办支出） | B28: 25,001 | C28: 0 | D28: 0.0 | F28: 0
A29: 一般公共预算支出合计 | B29: =SUM(B6:B28) -> 460,819 | C29: =SUM(C6:C28) -> 495,693 | D29: 107.6 | E29: 13.0 | F29: 438,593
A30: 转移性支出 | B30: =SUM(B31:B35) -> 191,625 | C30: =SUM(C31:C35) -> 277,399 | D30: 144.8 | E30: 5.1 | F30: 263,910
A31: 上解支出 | B31: 176,714 | C31: 262,537 | D31: 148.6 | E31: 2.3 | F31: 256,511
A32: 区域间转移性支出 | F32: 306
A33: 调出资金
A34: 安排预算稳定调节基金 | C34: 2,862
A35: 债务还本支出 | B35: 14,911 | C35: 12,000 | D35: =C35/B35*100 -> 80.5 | E35: =(C35-F35)/F35*100 -> 69.2 | F35: 7,093
A36: 结转下年支出 | C36: 16,538 | F36: 36,184
A37: 总支出合计 | B37: =SUM(B29:B30)+B36 -> 652,444 | C37: =SUM(C29:C30)+C36 -> 789,630 | D37: =C37/B37*100 -> 121.0 | E37: =(C37-F37)/F37*100 -> 6.9 | F37: 738,687

Sheet 表3.本级一般公共预算收入
A1: 表3
A2: 2023年槐荫区本级一般公共预算收入决算表
F3: 单位：万元
A4: 项目 | B4: 2023年预期数 | C4: 2023年调整预期数 | D4: 2023年决算数 | I4: 2022年决算
D5: 金额 | E5: 占调整预期% | F5: 比上年增长%
A6: 一、增值税 | B6: 168,167 | C6: 168,167 | D6: 202,543 | E6: =D6/C6*100 -> 120.4 | F6: =(D6-I6)/I6*100 -> 47.5 | G6: 179824.85 | H6: =D6/G6*100-100 -> 12.63 | I6: 137,297
A7: 二、营业税 | G7: 468.1 | H7: -100.00
A8: 三、企业所得税 | B8: 58,226 | C8: 58,226 | D8: 54,079 | E8: 92.9 | F8: 4.8 | G8: 54864.45 | H8: -1.43 | I8: 51,614
A9: 四、个人所得税 | B9: 33,775 | C9: 33,775 | D9: 31,741 | E9: 94.0 | F9: 5.9 | G9: 25513.28 | H9: 24.41 | I9: 29,978
A10: 五、资源税 | B10: 372 | C10: 372 | D10: 326 | E10: 87.8 | F10: -0.8 | G10: 169.8 | H10: 92.23 | I10: 329
A11: 六、城市维护建设税 | B11: 27,174 | C11: 27,174 | D11: 25,565 | E11: 94.1 | F11: 5.8 | G11: 25514.37 | H11: 0.20 | I11: 24,157
A12: 七、房产税 | B12: 24,815 | C12: 24,815 | D12: 21,890 | E12: 88.2 | F12: -0.5 | G12: 16995.79 | H12: 28.79 | I12: 21,998
A13: 八、印花税 | B13: 9,011 | C13: 9,011 | D13: 10,471 | E13: 116.2 | F13: 31.1 | G13: 6195.75 | H13: 69.01 | I13: 7,990
A14: 九、城镇土地使用税 | B14: 14,942 | C14: 14,942 | D14: 13,368 | E14: 89.5 | F14: 1.0 | G14: 18906.68 | H14: -29.29 | I14: 13,230
A15: 十、土地增值税 | B15: 71,732 | C15: 71,732 | D15: 72,019 | E15: 100.4 | F15: 60.3 | G15: 33827.96 | H15: 112.90 | I15: 44,926
A16: 十一、车船税 | B16: 2,749 | C16: 2,749 | D16: 1,025 | E16: 37.3 | F16: -57.9 | G16: 195.8 | H16: 423.26 | I16: 2,433
A17: 十二、耕地占用税 | B17: 2,165 | C17: 2,165 | D17: 614 | E17: 28.3 | F17: -68.0 | G17: 4588.68 | H17: -86.62 | I17: 1,916
A18: 十三、契税 | B18: 97,519 | C18: 97,519 | D18: 62,851 | E18: 64.5 | F18: -19.2 | G18: 101408.65 | H18: -38.02 | I18: 77,804
A19: 十四、环保税 | B19: 141 | C19: 141 | D19: 99 | E19: 70.4 | F19: -20.5 | G19: 38 | H19: 161.63 | I19: 125
A20: 十五、其他税收 | B20: 342 | C20: 342 | D20: 185 | E20: 53.9 | F20: -39.1 | I20: 303
A21: 十六、专项收入 | B21: 15,297 | C21: 15,297 | D21: 15,293 | E21: 100.0 | F21: 3.5 | I21: 14,773
A22: 十七、行政事业性收费收入 | B22: 16,663 | C22: 16,663 | D22: 17,966 | E22: 107.8 | F22: 9.2 | I22: 16,446
A23: 十八、罚没收入 | B23: 1,499 | C23: 1,499 | D23: 5,576 | E23: 372.0 | F23: 290.2 | I23: 1,429
A24: 十九、国有资本经营收入 | B24: 0 | C24: 0 | D24: 322
A25: 二十、国有资源（资产）有偿使用收入 | B25: 20,444 | C25: 20,444 | D25: 30,348 | E25: =D25/C25*100 -> 148.4 | F25: =(D25-I25)/I25*100 -> -43.6 | I25: 53,764
A26: 二十一、捐赠 | B26: 17 | C26: 17 | D26: 16 | E26: 91.5 | F26: 3.4 | I26: 15
A27: 二十二、其他收入 | B27: 1,080 | C27: 1,080 | D27: 1,096 | E27: 101.5 | F27: 14.7 | I27: 956
A28: 一般公共预算收入合计 | B28: =SUM(B6:B27) -> 566,130 | C28: =SUM(C6:C27) -> 566,130 | D28: =SUM(D6:D27) -> 567,393 | E28: 100.2 | F28: 13.1 | I28: 501,483
A29: 债务收入 | B29: 12,000 | C29: 12,000 | D29: 12,000 | E29: 100.0 | F29: 71.4 | I29: 7,000
A30: 地方政府债券收入 | B30: 12,000 | C30: 12,000 | D30: 12,000 | E30: 100.0 | F30: 71.4 | I30: 7,000
A31: 转移性收入 | B31: =SUM(B32:B36) -> 44,714 | C31: =SUM(C32:C36) -> 44,714 | D31: =SUM(D32:D36) -> 174,053 | E31: 389.3 | F31: -20.1 | I31: 217,944
A32: 返还性收入 | B32: 38,465 | C32: 38,465 | D32: 38,465 | E32: 100.0 | F32: 0.0 | I32: 38,465
A33: 一般性转移支付收入 | B33: 5,387 | C33: 5,387 | D33: 57,470 | E33: 1,066.8 | F33: -46.0 | I33: 106,481
A34: 专项转移支付收入 | D34: 27,051 | F34: -22.4 | I34: 34,866
A35: 区域间转移性收入 | D35: 291 | I35: 162
A36: 调用预算稳定调节基金及调入资金 | B36: 862 | C36: 862 | D36: 50,776 | E36: =D36/C36*100 -> 5,890.5 | F36: =(D36-I36)/I36*100 -> 33.7 | I36: 37,970
A37: 上年结转及结余收入 | B37: 29,600 | C37: 29,600 | D37: 36,184 | E37: 122.2 | F37: 195.1 | I37: 12,260
A38: 总收入合计 | B38: =B28+B31+B37+B29 -> 652,444 | C38: =C28+C31+C37+C29 -> 652,444 | D38: =D28+D29+D31+D37 -> 789,630 | E38: 121.0 | F38: 6.9 | I38: 738,687

Sheet 表4.本级一般公共预算支出
A1: 表4
A2: 2023年槐荫区本级一般公共预算支出决算表
E3: 单位：万元
A4: 项目 | B4: 2023年调整预算数 | C4: 2023年决算数（含转移支付） | F4: 2022决算数
C5: 金额 | D5: 占调整预算% | E5: 比上年同比增长%
A6: 一、一般公共服务支出 | B6: 69,517 | C6: 79,360 | D6: =C6/B6*100 -> 114.2 | E6: =(C6-F6)/F6*100 -> 15.7 | F6: 68,574
A7: 二、国防支出 | B7: 160 | C7: 823 | D7: 514.4 | E7: 824.7 | F7: 89
A8: 三、公共安全支出 | B8: 14,709 | C8: 16,233 | D8: 110.4 | E8: 85.7 | F8: 8,740
A9: 四、教育支出 | B9: 111,296 | C9: 121,040 | D9: 108.8 | E9: 0.4 | F9: 120,584
A10: 五、科学技术支出 | B10: 2,468 | C10: 2,015 | D10: 81.7 | E10: 31.2 | F10: 1,536
A11: 六、文化旅游体育与传媒支出 | B11: 1,840 | C11: 2,372 | D11: 128.9 | E11: 16.1 | F11: 2,043
A12: 七、社会保障和就业支出 | B12: 108,809 | C12: 127,949 | D12: 117.6 | E12: 34.6 | F12: 95,056
A13: 八、卫生健康支出 | B13: 47,996 | C13: 62,333 | D13: 129.9 | E13: -1.2 | F13: 63,077
A14: 九、节能环保支出 | B14: 7,935 | C14: 2,896 | D14: 36.5 | E14: -67.2 | F14: 8,828
A15: 十、城乡社区支出 | B15: 28,115 | C15: 36,705 | D15: 130.6 | E15: 37.1 | F15: 26,770
A16: 十一、农林水支出 | B16: 7,350 | C16: 13,383 | D16: 182.1 | E16: 0.1 | F16: 13,375
A17: 十二、交通运输支出 | B17: 152 | C17: 62 | D17: 40.9 | E17: 3.3 | F17: 60
A18: 十三、资源勘探信息等支出 | B18: 5,815 | C18: 6,015 | D18: 103.4 | E18: 7.4 | F18: 5,598
A19: 十四、商业服务业等支出 | C19: 1,335 | E19: -23.9 | F19: 1,755
A20: 十五、金融支出 | B20: 236 | C20: 217 | D20: =C20/B20*100 -> 91.9 | E20: -38.9 | F20: 355
A21: 十六、援助其他地区支出 | C21: 737 | E21: 0.0 | F21: 737
A22: 十七、自然资源海洋气象等支出 | B22: 1,858 | C22: 2,032 | D22: 109.4 | E22: 3.5 | F22: 1,963
A23: 十八、住房保障支出 | B23: 13,771 | C23: 16,380 | D23: 118.9 | E23: -2.8 | F23: 16,847
A24: 十九、粮油物资储备支出 | C24: 100
A25: 二十、灾害防治及应急管理支出 | B25: 1,961 | C25: 1,877 | D25: =C25/B25*100 -> 95.7 | E25: =(C25-F25)/F25*100 -> 168.1 | F25: 700
A26: 二十一、预备费 | B26: 10,000 | C26: 0
A27: 二十二、债务付息支出 | B27: 1,829 | C27: 1,829 | D27: 100.0 | E27: -4.0 | F27: 1,906
A28: 二十三、其他支出（含街办支出） | B28: 25,001 | C28: 0 | D28: 0.0 | F28: 0
A29: 一般公共预算支出合计 | B29: =SUM(B6:B28) -> 460,819 | C29: =SUM(C6:C28) -> 495,693 | D29: 107.6 | E29: 13.0 | F29: 438,593
A30: 转移性支出 | B30: =SUM(B31:B35) -> 191,625 | C30: =SUM(C31:C35) -> 277,399 | D30: 144.8 | E30: 5.1 | F30: 263,910
A31: 上解支出 | B31: 176,714 | C31: 262,537 | D31: 148.6 | E31: 2.3 | F31: 256,511
A32: 区域间转移性支出 | F32: 306
A33: 调出资金
A34: 安排预算稳定调节基金 | C34: 2,862
A35: 债务还本支出 | B35: 14,911 | C35: 12,000 | D35: =C35/B35*100 -> 80.5 | E35: =(C35-F35)/F35*100 -> 69.2 | F35: 7,093
A36: 结转下年支出 | C36: 16,538 | F36: 36,184
A37: 总支出合计 | B37: =SUM(B29:B30)+B36 -> 652,444 | C37: =SUM(C29:C30)+C36 -> 789,630 | D37: =C37/B37*100 -> 121.0 | E37: =(C37-F37)/F37*100 -> 6.9 | F37: 738,687

Sheet 表5.本级一般公共预算功能分类
A1: 表5
A2: 2023年槐荫区本级一般公共预算支出决算表（功能分类）
A3: 单位：万元
A4: 科目编码 | B4: 科目名称 | C4: 决算数
B5: 一般公共预算支出 | C5: =SUM(C6,C235,C275,C294,C384,C436,C492,C549,C677,C750,C827,C850,C957,C1015,C1079,C1099,C1129,C1139,C1184,C1205,C1249,C1299,C1302,C1314) -> 495,693
A6: 201 | B6: 一般公共服务支出 | C6: =SUM(C7+C19+C28+C39+C50+C61+C72+C80+C89+C102+C111+C122+C134+C141+C149+C155+C162+C169+C176+C183+C190+C198+C204+C210+C217+C232) -> 79,360
A7: 20101 | B7: 人大事务 | C7: =SUM(C8:C18) -> 1,380
A8: 2010101 | B8: 行政运行 | C8: 1,123
A9: 2010102 | B9: 一般行政管理事务 | C9: 0
A10: 2010103 | B10: 机关服务 | C10: 0
A11: 2010104 | B11: 人大会议 | C11: 66
A12: 2010105 | B12: 人大立法 | C12: 0
A13: 2010106 | B13: 人大监督 | C13: 0
A14: 2010107 | B14: 人大代表履职能力提升 | C14: 9
A15: 2010108 | B15: 代表工作 | C15: 121
A16: 2010109 | B16: 人大信访工作 | C16: 0
A17: 2010150 | B17: 事业运行 | C17: 46
A18: 2010199 | B18: 其他人大事务支出 | C18: 15
A19: 20102 | B19: 政协事务 | C19: =SUM(C20:C27) -> 903
A20: 2010201 | B20: 行政运行 | C20: 902
A21: 2010202 | B21: 一般行政管理事务 | C21: 0
A22: 2010203 | B22: 机关服务 | C22: 0
A23: 2010204 | B23: 政协会议 | C23: 0
A24: 2010205 | B24: 委员视察 | C24: 0
A25: 2010206 | B25: 参政议政 | C25: 0
A26: 2010250 | B26: 事业运行 | C26: 1
A27: 2010299 | B27: 其他政协事务支出 | C27: 0
A28: 20103 | B28: 政府办公厅(室)及相关机构事务 | C28: =SUM(C29:C38) -> 43,736
A29: 2010301 | B29: 行政运行 | C29: 34,500
A30: 2010302 | B30: 一般行政管理事务 | C30: 517
A31: 2010303 | B31: 机关服务 | C31: 0
A32: 2010304 | B32: 专项服务 | C32: 0
A33: 2010305 | B33: 专项业务及机关事务管理 | C33: 0
A34: 2010306 | B34: 政务公开审批 | C34: 0
A35: 2010308 | B35: 信访事务 | C35: 5
A36: 2010309 | B36: 参事事务 | C36: 0
A37: 2010350 | B37: 事业运行 | C37: 8,714
A38: 2010399 | B38: 其他政府办公厅(室)及相关机构事务支出 | C38: 0
A39: 20104 | B39: 发展与改革事务 | C39: =SUM(C40:C49) -> 2,237
A40: 2010401 | B40: 行政运行 | C40: 2,105
A41: 2010402 | B41: 一般行政管理事务 | C41: 0
A42: 2010403 | B42: 机关服务 | C42: 0
A43: 2010404 | B43: 战略规划与实施 | C43: 0
A44: 2010405 | B44: 日常经济运行调节 | C44: 0
A45: 2010406 | B45: 社会事业发展规划 | C45: 0
A46: 2010407 | B46: 经济体制改革研究 | C46: 0
A47: 2010408 | B47: 物价管理 | C47: 0
A48: 2010450 | B48: 事业运行 | C48: 132
A49: 2010499 | B49: 其他发展与改革事务支出 | C49: 0
A50: 20105 | B50: 统计信息事务 | C50: =SUM(C51:C60) -> 762
A51: 2010501 | B51: 行政运行 | C51: 551
A52: 2010502 | B52: 一般行政管理事务 | C52: 0
A53: 2010503 | B53: 机关服务 | C53: 0
A54: 2010504 | B54: 信息事务 | C54: 0
A55: 2010505 | B55: 专项统计业务 | C55: 0
A56: 2010506 | B56: 统计管理 | C56: 0
A57: 2010507 | B57: 专项普查活动 | C57: 86
A58: 2010508 | B58: 统计抽样调查 | C58: 34
A59: 2010550 | B59: 事业运行 | C59: 1
A60: 2010599 | B60: 其他统计信息事务支出 | C60: 90
A61: 20106 | B61: 财政事务 | C61: =SUM(C62:C71) -> 1,233
A62: 2010601 | B62: 行政运行 | C62: 1,231
A63: 2010602 | B63: 一般行政管理事务 | C63: 0
A64: 2010603 | B64: 机关服务 | C64: 0
A65: 2010604 | B65: 预算改革业务 | C65: 0
A66: 2010605 | B66: 财政国库业务 | C66: 0
A67: 2010606 | B67: 财政监察 | C67: 0
A68: 2010607 | B68: 信息化建设 | C68: 0
A69: 2010608 | B69: 财政委托业务支出 | C69: 0
A70: 2010650 | B70: 事业运行 | C70: 2
A71: 2010699 | B71: 其他财政事务支出 | C71: 0
A72: 20107 | B72: 税收事务 | C72: =SUM(C73:C79) -> 7,436
A73: 2010701 | B73: 行政运行 | C73: 7,436
A74: 2010702 | B74: 一般行政管理事务 | C74: 0
A75: 2010703 | B75: 机关服务 | C75: 0
A76: 2010709 | B76: 信息化建设 | C76: 0
A77: 2010710 | B77: 税收业务 | C77: 0
A78: 2010750 | B78: 事业运行 | C78: 0
A79: 2010799 | B79: 其他税收事务支出 | C79: 0
A80: 20108 | B80: 审计事务 | C80: =SUM(C81:C88) -> 500
A81: 2010801 | B81: 行政运行 | C81: 499
A82: 2010802 | B82: 一般行政管理事务 | C82: 0
A83: 2010803 | B83: 机关服务 | C83: 0
A84: 2010804 | B84: 审计业务 | C84: 0
A85: 2010805 | B85: 审计管理 | C85: 0
A86: 2010806 | B86: 信息化建设 | C86: 0
A87: 2010850 | B87: 事业运行 | C87: 1
A88: 2010899 | B88: 其他审计事务支出 | C88: 0
A89: 20109 | B89: 海关事务 | C89: =SUM(C90:C101) -> 0
A90: 2010901 | B90: 行政运行 | C90: 0
A91: 2010902 | B91: 一般行政管理事务 | C91: 0
A92: 2010903 | B92: 机关服务 | C92: 0
A93: 2010905 | B93: 缉私办案 | C93: 0
A94: 2010907 | B94: 口岸管理 | C94: 0
A95: 2010908 | B95: 信息化建设 | C95: 0
A96: 2010909 | B96: 海关关务 | C96: 0
A97: 2010910 | B97: 关税征管 | C97: 0
A98: 2010911 | B98: 海关监管 | C98: 0
A99: 2010912 | B99: 检验检疫 | C99: 0
A100: 2010950 | B100: 事业运行 | C100: 0
A101: 2010999 | B101: 其他海关事务支出 | C101: 0
A102: 20111 | B102: 纪检监察事务 | C102: =SUM(C103:C110) -> 2,522
A103: 2011101 | B103: 行政运行 | C103: 2,366
A104: 2011102 | B104: 一般行政管理事务 | C104: 0
A105: 2011103 | B105: 机关服务 | C105: 0
A106: 2011104 | B106: 大案要案查处 | C106: 0
A107: 2011105 | B107: 派驻派出机构 | C107: 0
A108: 2011106 | B108: 巡视工作 | C108: 0
A109: 2011150 | B109: 事业运行 | C109: 120
A110: 2011199 | B110: 其他纪检监察事务支出 | C110: 36
A111: 20113 | B111: 商贸事务 | C111: =SUM(C112:C121) -> 1,405
A112: 2011301 | B112: 行政运行 | C112: 1,334
A113: 2011302 | B113: 一般行政管理事务 | C113: 0
A114: 2011303 | B114: 机关服务 | C114: 0
A115: 2011304 | B115: 对外贸易管理 | C115: 0
A116: 2011305 | B116: 国际经济合作 | C116: 0
A117: 2011306 | B117: 外资管理 | C117: 0
A118: 2011307 | B118: 国内贸易管理 | C118: 0
A119: 2011308 | B119: 招商引资 | C119: 40
A120: 2011350 | B120: 事业运行 | C120: 26
A121: 2011399 | B121: 其他商贸事务支出 | C121: 5
A122: 20114 | B122: 知识产权事务 | C122: =SUM(C123:C133) -> 91
A123: 2011401 | B123: 行政运行 | C123: 0
A124: 2011402 | B124: 一般行政管理事务 | C124: 0
A125: 2011403 | B125: 机关服务 | C125: 0
A126: 2011404 | B126: 专利审批 | C126: 0
A127: 2011405 | B127: 知识产权战略和规划 | C127: 0
A128: 2011408 | B128: 国际合作与交流 | C128: 0
A129: 2011409 | B129: 知识产权宏观管理 | C129: 0
A130: 2011410 | B130: 商标管理 | C130: 0
A131: 2011411 | B131: 原产地地理标志管理 | C131: 0
A132: 2011450 | B132: 事业运行 | C132: 0
A133: 2011499 | B133: 其他知识产权事务支出 | C133: 91
A134: 20123 | B134: 民族事务 | C134: =SUM(C135:C140) -> 136
A135: 2012301 | B135: 行政运行 | C135: 0
A136: 2012302 | B136: 一般行政管理事务 | C136: 0
A137: 2012303 | B137: 机关服务 | C137: 0
A138: 2012304 | B138: 民族工作专项 | C138: 24
A139: 2012350 | B139: 事业运行 | C139: 0
A140: 2012399 | B140: 其他民族事务支出 | C140: 112
A141: 20125 | B141: 港澳台事务 | C141: =SUM(C142:C148) -> 69
A142: 2012501 | B142: 行政运行 | C142: 68
A143: 2012502 | B143: 一般行政管理事务 | C143: 0
A144: 2012503 | B144: 机关服务 | C144: 0
A145: 2012504 | B145: 港澳事务 | C145: 0
A146: 2012505 | B146: 台湾事务 | C146: 0
A147: 2012550 | B147: 事业运行 | C147: 0
A148: 2012599 | B148: 其他港澳台事务支出 | C148: 1
A149: 20126 | B149: 档案事务 | C149: =SUM(C150:C154) -> 188
A150: 2012601 | B150: 行政运行 | C150: 0
A151: 2012602 | B151: 一般行政管理事务 | C151: 0
A152: 2012603 | B152: 机关服务 | C152: 2
A153: 2012604 | B153: 档案馆 | C153: 186
A154: 2012699 | B154: 其他档案事务支出 | C154: 0
A155: 20128 | B155: 民主党派及工商联事务 | C155: =SUM(C156:C161) -> 170
A156: 2012801 | B156: 行政运行 | C156: 161
A157: 2012802 | B157: 一般行政管理事务 | C157: 0
A158: 2012803 | B158: 机关服务 | C158: 0
A159: 2012804 | B159: 参政议政 | C159: 0
A160: 2012850 | B160: 事业运行 | C160: 0
A161: 2012899 | B161: 其他民主党派及工商联事务支出 | C161: 9
A162: 20129 | B162: 群众团体事务 | C162: =SUM(C163:C168) -> 790
A163: 2012901 | B163: 行政运行 | C163: 735
A164: 2012902 | B164: 一般行政管理事务 | C164: 0
A165: 2012903 | B165: 机关服务 | C165: 0
A166: 2012906 | B166: 工会事务 | C166: 6
A167: 2012950 | B167: 事业运行 | C167: 31
A168: 2012999 | B168: 其他群众团体事务支出 | C168: 18
A169: 20131 | B169: 党委办公厅(室)及相关机构事务 | C169: =SUM(C170:C175) -> 1,294
A170: 2013101 | B170: 行政运行 | C170: 698
A171: 2013102 | B171: 一般行政管理事务 | C171: 0
A172: 2013103 | B172: 机关服务 | C172: 0
A173: 2013105 | B173: 专项业务 | C173: 0
A174: 2013150 | B174: 事业运行 | C174: 45
A175: 2013199 | B175: 其他党委办公厅(室)及相关机构事务支出 | C175: 551
A176: 20132 | B176: 组织事务 | C176: =SUM(C177:C182) -> 2,345
A177: 2013201 | B177: 行政运行 | C177: 1,204
A178: 2013202 | B178: 一般行政管理事务 | C178: 970
A179: 2013203 | B179: 机关服务 | C179: 0
A180: 2013204 | B180: 公务员事务 | C180: 29
A181: 2013250 | B181: 事业运行 | C181: 128
A182: 2013299 | B182: 其他组织事务支出 | C182: 14
A183: 20133 | B183: 宣传事务 | C183: =SUM(C184:C189) -> 1,813
A184: 2013301 | B184: 行政运行 | C184: 1,587
A185: 2013302 | B185: 一般行政管理事务 | C185: 1
A186: 2013303 | B186: 机关服务 | C186: 0
A187: 2013304 | B187: 宣传管理 | C187: 0
A188: 2013350 | B188: 事业运行 | C188: 45
A189: 2013399 | B189: 其他宣传事务支出 | C189: 180
A190: 20134 | B190: 统战事务 | C190: =SUM(C191:C197) -> 403
A191: 2013401 | B191: 行政运行 | C191: 391
A192: 2013402 | B192: 一般行政管理事务 | C192: 0
A193: 2013403 | B193: 机关服务 | C193: 0
A194: 2013404 | B194: 宗教事务 | C194: 7
A195: 2013405 | B195: 华侨事务 | C195: 0
A196: 2013450 | B196: 事业运行 | C196: 1
A197: 2013499 | B197: 其他统战事务支出 | C197: 4
A198: 20135 | B198: 对外联络事务 | C198: =SUM(C199:C203) -> 0
A199: 2013501 | B199: 行政运行 | C199: 0
A200: 2013502 | B200: 一般行政管理事务 | C200: 0
... 1117 more rows

Sheet 表6.本级一般预算基本支出经济分类
A1: 表6
A2: 2023年度本级一般公共预算基本支出决算经济分类表
C3: 单位：万元
A4: 科目编码 | B4: 科目名称 | C4: 一般公共预算基本支出
B6: 一般公共预算支出 | C6: 176,608
A7: 501 | B7: 机关工资福利支出 | C7: 54,008
A8: 50101 | B8: 工资奖金津补贴 | C8: 33,676
A9: 50102 | B9: 社会保障缴费 | C9: 10,320
A10: 50103 | B10: 住房公积金 | C10: 4,676
A11: 50199 | B11: 其他工资福利支出 | C11: 5,336
A12: 502 | B12: 机关商品和服务支出 | C12: 5,104
A13: 50201 | B13: 办公经费 | C13: 4,430
A14: 50202 | B14: 会议费 | C14: 3
A15: 50203 | B15: 培训费 | C15: 14
A16: 50204 | B16: 专用材料购置费 | C16: 0
A17: 50205 | B17: 委托业务费 | C17: 82
A18: 50206 | B18: 公务接待费 | C18: 11
A19: 50207 | B19: 因公出国(境)费用 | C19: 0
A20: 50208 | B20: 公务用车运行维护费 | C20: 242
A21: 50209 | B21: 维修(护)费 | C21: 208
A22: 50299 | B22: 其他商品和服务支出 | C22: 114
A23: 503 | B23: 机关资本性支出(一) | C23: 38
A24: 50301 | B24: 房屋建筑物购建 | C24: 0
A25: 50302 | B25: 基础设施建设 | C25: 0
A26: 50303 | B26: 公务用车购置 | C26: 0
A27: 50305 | B27: 土地征迁补偿和安置支出 | C27: 0
A28: 50306 | B28: 设备购置 | C28: 38
A29: 50307 | B29: 大型修缮 | C29: 0
A30: 50399 | B30: 其他资本性支出 | C30: 0
A31: 504 | B31: 机关资本性支出(二) | C31: 0
A32: 50401 | B32: 房屋建筑物购建 | C32: 0
A33: 50402 | B33: 基础设施建设 | C33: 0
A34: 50403 | B34: 公务用车购置 | C34: 0
A35: 50404 | B35: 设备购置 | C35: 0
A36: 50405 | B36: 大型修缮 | C36: 0
A37: 50499 | B37: 其他资本性支出 | C37: 0
A38: 505 | B38: 对事业单位经常性补助 | C38: 92,339
A39: 50501 | B39: 工资福利支出 | C39: 90,209
A40: 50502 | B40: 商品和服务支出 | C40: 2,130
A41: 50599 | B41: 其他对事业单位补助 | C41: 0
A42: 506 | B42: 对事业单位资本性补助 | C42: 0
A43: 50601 | B43: 资本性支出(一) | C43: 0
A44: 50602 | B44: 资本性支出(二) | C44: 0
A45: 507 | B45: 对企业补助 | C45: 0
A46: 50701 | B46: 费用补贴 | C46: 0
A47: 50702 | B47: 利息补贴 | C47: 0
A48: 50799 | B48: 其他对企业补助 | C48: 0
A49: 508 | B49: 对企业资本性支出 | C49: 0
A50: 50803 | B50: 资本金注入(一) | C50: 0
A51: 50804 | B51: 资本金注入(二) | C51: 0
A52: 50805 | B52: 政府投资基金股权投资 | C52: 0
A53: 50899 | B53: 其他对企业资本性支出 | C53: 0
A54: 509 | B54: 对个人和家庭的补助 | C54: 25,119
A55: 50901 | B55: 社会福利和救助 | C55: 2,391
A56: 50902 | B56: 助学金 | C56: 0
A57: 50903 | B57: 个人农业生产补贴 | C57: 0
A58: 50905 | B58: 离退休费 | C58: 22,500
A59: 50999 | B59: 其他对个人和家庭补助 | C59: 228
A60: 510 | B60: 对社会保障基金补助 | C60: 0
A61: 51002 | B61: 对社会保险基金补助 | C61: 0
A62: 51003 | B62: 补充全国社会保障基金 | C62: 0
A63: 51004 | B63: 对机关事业单位职业年金的补助 | C63: 0
A64: 511 | B64: 债务利息及费用支出 | C64: 0
A65: 51101 | B65: 国内债务付息 | C65: 0
A66: 51102 | B66: 国外债务付息 | C66: 0
A67: 51103 | B67: 国内债务发行费用 | C67: 0
A68: 51104 | B68: 国外债务发行费用 | C68: 0
A69: 514 | B69: 预备费及预留 | C69: 0
A70: 51401 | B70: 预备费 | C70: 0
A71: 51402 | B71: 预留 | C71: 0
A72: 599 | B72: 其他支出 | C72: 0
A73: 59907 | B73: 国家赔偿费用支出 | C73: 0
A74: 59908 | B74: 对民间非营利组织和群众性自治组织补贴 | C74: 0
A75: 59909 | B75: 经常性赠与 | C75: 0
A76: 59910 | B76: 资本性赠与 | C76: 0
A77: 59999 | B77: 其他支出 | C77: 0

Sheet 表7.税收返还和转移支付决算表
A1: 表7
A2: 2023年一般公共预算对下税收返还及一般性转移支付决算表
C3: 单位：万元
A4: 项目 | B4: 合计 | C4: 槐荫区
A5: 一、返还性支出
A7: 二、一般性转移支付
A22: 合 计 | B22: 0 | C22: 0
A23: 备注：槐荫区无对下税收返还及一般性转移支付，此表为空表

Sheet 表8.专项转移支付分地区分项目
A1: 表8
A2: 2023年一般公共预算安排的专项转移支付分地区、分项目决算表
B3: 单位：万元
A4: 项 目 | B4: 槐荫区
A5: 合 计 | B5: 0
A6: 一、一般公共服务方面
A7: 二、公共安全方面
A8: 三、教育方面
A9: 四、科学技术方面
A10: 其中：人才建设资金
A11: 科技创新发展资金
A12: 五、文化旅游体育与传媒方面
A13: 其中：宣传文化旅游发展资金
A14: 六、社会保障和就业方面
A15: 其中：残疾人康复和就业资金
A16: 基本建设投资
A17: 七、卫生健康方面
A18: 其中：卫生健康资金
A19: 基本建设投资
A20: 八、节能环保方面
A21: 其中：环境污染防治资金
A22: 基本建设投资
A23: 住房和城镇化建设资金
A24: 九、城乡社区方面
A25: 其中：基本建设投资
A26: 住房和城镇化建设资金
A27: 十、农林水方面
A28: 其中：乡村振兴重大专项资金
A29: 基本建设投资
A30: 十一、交通运输方面
A31: 其中：交通发展资金
A32: 十二、资源勘探工业信息等方面
A33: 其中：工业转型发展资金
A34: 十三、商业服务业等方面
A35: 其中：工业转型发展资金
A36: 商贸发展和市场开拓资金
A37: 十四、金融方面
A38: 其中：金融发展资金
A39: 十五、自然资源海洋气象等方面
A40: 其中：国土勘探和治理资金
A41: 十六、住房保障方面
A42: 其中：基本建设投资
A43: 十七、粮油物资储备方面
A44: 其中：基本建设投资
A45: 十八、灾害防治及应急管理方面
A46: 其中：安全生产和应急管理资金
A47: 金融发展资金
A48: 十九、其他方面
A49: 备注：槐荫区无对下税收返还及一般性转移支付，此表为空表

Sheet 表9.基金（含转移支付）收入执行
A1: 表9
A2: 2023年槐荫区政府性基金预算（含转移支付）收入决算表
F3: 单位：万元
A4: 项目 | B4: 2023年预期数 | C4: 调整预期数 | D4: 2023年决算数 | G4: 备注2022
D5: 金额 | E5: 占调整预期% | F5: 比上年增长%
A6: 本年收入合计 | B6: =B7 -> 483,143 | C6: =C7 -> 147,201 | D6: =D7 -> 146,772 | E6: =D6/C6*100 -> 100 | F6: =(D6-G6)/G6*100 -> -44.6 | G6: 264,895
A7: 转移性收入 | B7: =SUM(B8:B12) -> 483,143 | C7: =SUM(C8:C12) -> 147,201 | D7: =SUM(D8:D12) -> 146,772 | E7: =D7/C7*100 -> 100 | F7: =(D7-G7)/G7*100 -> -44.6 | G7: 264,895
A8: 返还性收入
A9: 一般性转移支付收入
A10: 专项转移支付收入 | B10: 445,476 | C10: 69,097 | D10: 68,665 | E10: =D10/C10*100 -> 99 | F10: =(D10-G10)/G10*100 -> -60.7 | G10: 174,876
A11: 地方政府债券转贷收入 | B11: 28,200 | C11: 66,000 | D11: 66,000 | E11: =D11/C11*100 -> 100 | F11: =(D11-G11)/G11*100 -> -17.6 | G11: 80,100
A12: 调入资金 | B12: 9,467 | C12: 12,104 | D12: 12,107 | E12: 100 | F12: =(D12-G12)/G12*100 -> 22.1 | G12: 9,919
A13: 上年结转及结余收入 | B13: 22,049 | C13: 24,293 | D13: 24,293 | E13: 100 | F13: =(D13-G13)/G13*100 -> -1.1 | G13: 24,576
A14: 总收入合计 | B14: =B7+B13 -> 505,192 | C14: =C7+C13 -> 171,495 | D14: =D7+D13 -> 171,065 | E14: 100 | F14: =(D14-G14)/G14*100 -> -40.9 | G14: 289,471

Sheet 表10.基金（转移支付）支出执行
A1: 表10
A2: 2023年槐荫区政府性基金预算支出决算表
F3: 单位：万元
A4: 项目 | B4: 2023年预期数 | C4: 调整预期数 | D4: 2023年决算数（含转移支付） | G4: 2022年
D5: 金额 | E5: 占调整预期% | F5: 比上年增长%
A6: 一、教育
A7: 二、科学技术
A8: 三、文化旅游体育与传媒 | C8: 60 | D8: 60 | E8: =D8/C8*100 -> 99 | F8: =(D8-G8)/G8*100 -> -25.5 | G8: 80
A9: 四、社会保障和就业
A10: 五、节能环保
A11: 六、城乡社区事务 | B11: 465,176 | C11: 87,724 | D11: 86,973 | E11: =D11/C11*100 -> 99 | F11: =(D11-G11)/G11*100 -> -53.4 | G11: 186,772
A12: 七、农林水事务
A13: 八、交通运输
A14: 九、资源勘探电力信息等事务
A15: 十、商业服务业等事务
A16: 十一、金融监管等事务
A17: 十二、其他支出 | B17: 406 | C17: 38,407 | D17: 38,469 | E17: =D17/C17*100 -> 100 | F17: -41.6 | G17: 65,856
A18: 十三、债务付息支出 | B18: 11,410 | C18: 12,054 | D18: 12,054 | E18: =D18/C18*100 -> 100 | F18: 22.3 | G18: 9,854
A19: 十四、抗疫特别国债安排的支出
A20: 支出合计 | B20: =SUM(B7:B18) -> 476,992 | C20: =SUM(C7:C18) -> 138,245 | D20: =SUM(D7:D19) -> 137,556 | E20: 100 | F20: -47.6 | G20: 262,562
A21: 转移性支出 | B21: =SUM(B22:B24) -> 28,200 | C21: =SUM(C22:C24) -> 28,250 | D21: =SUM(D22:D24) -> 33,334 | E21: 118 | F21: 1,174.2 | G21: 2,616
A22: 上解支出 | C22: 50 | D22: 53 | E22: 106 | F22: -17.2 | G22: 64
A23: 调出资金 | D23: 5,081 | G23: 2,552
A24: 债务还本支出 | B24: 28,200 | C24: 28,200 | D24: 28,200 | E24: =D24/C24*100 -> 100
A25: 结转下年支出 | C25: 5,000 | D25: 175 | E25: =D25/C25*100 -> 4 | F25: -99.3 | G25: 24,293
A26: 总支出合计 | B26: =SUM(B20:B21)+B25 -> 505,192 | C26: 171,495 | D26: 171,065 | E26: =D26/C26*100 -> 100 | F26: -40.9 | G26: 289,471

Sheet 表11.本级基金收入
A1: 表11
A2: 2023年槐荫区本级政府性基金预算（含转移支付）收入决算表
F3: 单位：万元
A4: 项目 | B4: 2023年预期数 | C4: 调整预期数 | D4: 2023年决算数 | G4: 备注2022
D5: 金额 | E5: 占调整预期% | F5: 比上年增长%
A6: 本年收入合计 | B6: =B7 -> 483,143 | C6: =C7 -> 147,201 | D6: =D7 -> 146,772 | E6: =D6/C6*100 -> 100 | F6: =(D6-G6)/G6*100 -> -44.6 | G6: 264,895
A7: 转移性收入 | B7: =SUM(B8:B12) -> 483,143 | C7: =SUM(C8:C12) -> 147,201 | D7: =SUM(D8:D12) -> 146,772 | E7: =D7/C7*100 -> 100 | F7: -44.6 | G7: 264,895
A8: 返还性收入
A9: 一般性转移支付收入
A10: 专项转移支付收入 | B10: 445,476 | C10: 69,097 | D10: 68,665 | E10: =D10/C10*100 -> 99 | F10: -60.7 | G10: 174,876
A11: 地方政府债券转贷收入 | B11: 28,200 | C11: 66,000 | D11: 66,000 | E11: 100 | F11: -17.6 | G11: 80,100
A12: 调入资金 | B12: 9,467 | C12: 12,104 | D12: 12,107 | E12: 100 | F12: 22.1 | G12: 9,919
A13: 上年结转及结余收入 | B13: 22,049 | C13: 24,293 | D13: 24,293 | E13: 100 | F13: -1.1 | G13: 24,576
A14: 总收入合计 | B14: =B7+B13 -> 505,192 | C14: =C7+C13 -> 171,495 | D14: =D7+D13 -> 171,065 | E14: 100 | F14: -40.9 | G14: 289,471

Sheet 表12.本级基金支出
A1: 表12
A2: 2023年槐荫区政府性基金预算支出决算表
F3: 单位：万元
A4: 项目 | B4: 2023年预期数 | C4: 调整预期数 | D4: 2023年决算数（含转移支付） | G4: 2022年
D5: 金额 | E5: 占调整预期% | F5: 比上年增长%
A6: 一、教育
A7: 二、科学技术
A8: 三、文化旅游体育与传媒 | C8: 60 | D8: 60 | E8: =D8/C8*100 -> 99 | F8: =(D8-G8)/G8*100 -> -25.5 | G8: 80
A9: 四、社会保障和就业
A10: 五、节能环保
A11: 六、城乡社区事务 | B11: 465,176 | C11: 87,724 | D11: 86,973 | E11: =D11/C11*100 -> 99 | F11: =(D11-G11)/G11*100 -> -53.4 | G11: 186,772
A12: 七、农林水事务
A13: 八、交通运输
A14: 九、资源勘探电力信息等事务
A15: 十、商业服务业等事务
A16: 十一、金融监管等事务
A17: 十二、其他支出 | B17: 406 | C17: 38,407 | D17: 38,469 | E17: =D17/C17*100 -> 100 | F17: =(D17-G17)/G17*100 -> -41.6 | G17: 65,856
A18: 十三、债务付息支出 | B18: 11,410 | C18: 12,054 | D18: 12,054 | E18: 100 | F18: 22.3 | G18: 9,854
A19: 十四、抗疫特别国债安排的支出
A20: 支出合计 | B20: =SUM(B7:B18) -> 476,992 | C20: =SUM(C7:C18) -> 138,245 | D20: =SUM(D7:D19) -> 137,556 | E20: 100 | F20: -47.6 | G20: 262,562
A21: 转移性支出 | B21: =SUM(B22:B24) -> 28,200 | C21: =SUM(C22:C24) -> 28,250 | D21: =SUM(D22:D24) -> 33,334 | E21: 118 | F21: 1,174.2 | G21: 2,616
A22: 上解支出 | C22: 50 | D22: 53 | E22: 106 | F22: -17.2 | G22: 64
A23: 调出资金 | D23: 5,081 | G23: 2,552
A24: 债务还本支出 | B24: 28,200 | C24: 28,200 | D24: 28,200 | E24: =D24/C24*100 -> 100
A25: 结转下年支出 | C25: 5,000 | D25: 175 | E25: 4 | F25: =(D25-G25)/G25*100 -> -99.3 | G25: 24,293
A26: 总支出合计 | B26: =SUM(B20:B21)+B25 -> 505,192 | C26: =SUM(C20:C21)+C25 -> 171,495 | D26: =SUM(D20:D21)+D25 -> 171,065 | E26: 100 | F26: =(D26-G26)/G26*100 -> -40.9 | G26: 289,471

Sheet 表13.基金转移支付
A1: 表13
A2: 2023年槐荫区政府性基金对下转移支付分项目、分地区决算表
C3: 单位：万元
A4: 项 目 | B4: 合计 | C4: 槐荫区 | D4: **县
A5: 合 计 | B5: 0 | C5: 0 | F5: =IF(B5=SUM(B6:B14),"","1") -> 
A6: 一、国家电影事业发展专项资金
A7: 二、旅游发展基金
A8: 三、大中型水库移民后期扶持基金
A9: 四、国有土地使用权出让收入及对应专项债务收入安排的支出
A10: 五、国家重大水利工程建设基金
A11: 六、港口建设费安排的支出
A12: 七、民航发展基金
A13: 八、彩票公益金及彩票发行销售机构业务费安排的支出
A14: 九、其他政府性基金及对应专项债务收入安排的支出
A15: 备注：槐荫区无政府性基金对下转移支付，此表为空表

Sheet 表14.国有资本经营预算收入表
A1: 表14
A2: 2023年槐荫区国有资本经营预算收入决算表
F3: 单位：万元
A4: 项目 | B4: 2023预期数 | C4: 2023年调整预期数 | D4: 2023年决算数 | G4: 2022
D5: 金额 | E5: 占调整预期% | F5: 比上年增长%
A6: 一、利润收入 | G6: 268
A7: 建筑施工企业利润收入 | G7: 268
A8: 其他国有资本经营预算企业利润收入
A9: 二、股利股息收入 | B9: 300 | C9: 552 | D9: 552 | E9: 100
A10: 三、产权转让收入
A11: 四、清算收入
A12: 五、其他国有资本经营预算收入
A13: 六、上级补助收入 | B13: 254 | C13: 321 | D13: 321 | E13: =D13/C13*100 -> 100 | F13: =(D13-G13)/G13*100 -> -3.0 | G13: 331
A14: 本年收入合计 | B14: =B6+B9+B10+B11+B12+B13 -> 554 | C14: 873 | D14: 873 | E14: 100 | F14: 45.8 | G14: 599
A15: 上年结转收入 | B15: 302 | C15: 302 | D15: 302 | E15: =D15/C15*100 -> 100 | F15: -6.5 | G15: 323
A16: 收入总计 | B16: =B14+B15 -> 856 | C16: =C14+C15 -> 1,175 | D16: =D14+D15 -> 1,175 | E16: 100 | F16: =(D16-G16)/G16*100 -> 27.5 | G16: 922

Sheet 表15.国有资本经营预算支出表
A1: 表15
A2: 2023年槐荫区国有资本经营预算支出执行情况表
F3: 单位：万元
A4: 项目 | B4: 2023年预期数 | C4: 2023年调整预期数 | D4: 2023年决算数 | G4: 2022
D5: 金额 | E5: 占调整预期% | F5: 比上年增长%
A6: 一、社会保障和就业支出
A7: 二、国有资本经营预算支出 | B7: 766 | C7: 321 | D7: 321 | E7: =D7/C7*100 -> 100.00 | F7: =(D7-G7)/G7*100 -> -6.4 | G7: 343
A8: 解决历史遗留问题及改革成本支出 | B8: 556 | C8: 321 | D8: 321 | E8: 100.00 | F8: =(D8-G8)/G8*100 -> -6.4 | G8: 343
A9: 国有企业退休人员社会化管理补助支出 | B9: 556 | C9: 321 | D9: 302 | E9: 94.17 | F9: =(D9-G9)/G9*100 -> -3.7 | G9: 314
A10: 其他解决历史遗留问题及改革成本支出 | B10: 210 | D10: 19 | F10: -34.3 | G10: 29
A11: 其他国有资本经营预算支出 | B11: 210
A12: 其他国有资本经营预算支出 | B12: 210
A13: 本年支出合计 | B13: 766 | C13: 321 | D13: 321 | E13: =D13/C13*100 -> 100.00 | F13: =(D13-G13)/G13*100 -> -6.4 | G13: 343
A14: 调出资金 | B14: 90 | C14: 166 | D14: 166 | E14: 100.00 | F14: -40.1 | G14: 277
A15: 结转下年支出合计 | B15: 0 | C15: 688 | D15: 688 | E15: 100.00 | F15: 127.8 | G15: 302
A16: 支出总计 | B16: 856 | C16: 1,175 | D16: 1,175 | E16: 100.00 | F16: 27.4 | G16: 922

Sheet 表16.本级国有资本收入表
A1: 表16
A2: 2023年槐荫区本级国有资本经营预算收入决算表
F3: 单位：万元
A4: 项目 | B4: 2023预期数 | C4: 2023年调整预期数 | D4: 2023年决算数 | G4: 2022
D5: 金额 | E5: 占调整预期% | F5: 比上年增长%
A6: 一、利润收入 | G6: 268
A7: 建筑施工企业利润收入 | G7: 268
A8: 其他国有资本经营预算企业利润收入
A9: 二、股利股息收入 | B9: 300 | C9: 552 | D9: 552 | E9: 100
A10: 三、产权转让收入
A11: 四、清算收入
A12: 五、其他国有资本经营预算收入
A13: 六、上级补助收入 | B13: 254 | C13: 321 | D13: 321 | E13: =D13/C13*100 -> 100 | F13: =(D13-G13)/G13*100 -> -3.0 | G13: 331
A14: 本年收入合计 | B14: =B6+B9+B10+B11+B12+B13 -> 554 | C14: =C6+C9+C10+C11+C12+C13 -> 873 | D14: =D6+D9+D10+D11+D12+D13 -> 873 | E14: 100 | F14: 45.8 | G14: 599
A15: 上年结转收入 | B15: 302 | C15: 302 | D15: 302 | E15: 100 | F15: -6.5 | G15: 323
A16: 收入总计 | B16: =B14+B15 -> 856 | C16: =C14+C15 -> 1,175 | D16: =D14+D15 -> 1,175 | E16: 100 | F16: 27.5 | G16: 922

Sheet 表17.本级国有资本支出表
A1: 表17
A2: 2023年槐荫区本级国有资本经营预算支出执行情况表
F3: 单位：万元
A4: 项目 | B4: 2023年预期数 | C4: 2023年调整预期数 | D4: 2023年决算数 | G4: 2022
D5: 金额 | E5: 占调整预期% | F5: 比上年增长%
A6: 一、社会保障和就业支出
A7: 二、国有资本经营预算支出 | B7: 766 | C7: 321 | D7: 321 | E7: =D7/C7*100 -> 100.00 | F7: =(D7-G7)/G7*100 -> -6.4 | G7: 343
A8: 解决历史遗留问题及改革成本支出 | B8: 556 | C8: 321 | D8: 321 | E8: 100.00 | F8: -6.4 | G8: 343
A9: 国有企业退休人员社会化管理补助支出 | B9: 556 | C9: 321 | D9: 302 | E9: 94.17 | F9: -3.7 | G9: 314
A10: 其他解决历史遗留问题及改革成本支出 | B10: 210 | D10: 19 | F10: -34.3 | G10: 29
A11: 其他国有资本经营预算支出 | B11: 210
A12: 其他国有资本经营预算支出 | B12: 210
A13: 本年支出合计 | B13: 766 | C13: 321 | D13: 321 | E13: =D13/C13*100 -> 100.00 | F13: =(D13-G13)/G13*100 -> -6.4 | G13: 343
A14: 调出资金 | B14: 90 | C14: 166 | D14: 166 | E14: 100.00 | F14: -40.1 | G14: 277
A15: 结转下年支出合计 | C15: 688 | D15: 688 | E15: 100.00 | F15: 127.8 | G15: 302
A16: 支出总计 | B16: 856 | C16: 1,175 | D16: 1,175 | E16: 100.00 | F16: 27.4 | G16: 922

Sheet 表18.国资转移支付
A1: 表18
A2: 2023年槐荫区对下国有资本经营预算转移支付分项目分地区决算表
D3: 单位：万元
A4: 地 区 | B4: 合 计 | C4: 其中：
C5: 国有企业退休人员社会化管理支出 | D5: 省属困难企业独生子女父母养老补助
A6: 槐荫区 | B6: 0
A22: 合 计
A23: 备注：槐荫区为无国有资本对下转移支付，此表为空表

Sheet 表19.社保基金收入执行
A1: 表19
A2: 2023年槐荫区社会保险基金预算收入决算表
E3: 单位：万元
A4: 项目 | B4: 2023年预算数 | C4: 2023年决算数 | F4: 2022
C5: 金额 | D5: 占预算% | E5: 比上年增长%
A6: 一、城乡居民基本养老保险基金收入 | B6: 10,549 | C6: 12,257 | D6: =C6/B6*100 -> 116.19 | E6: =(C6-F6)/F6*100 -> -18.1 | F6: 14,957
A7: 其中：保险费收入 | B7: 1,199 | C7: 1,443 | D7: 120.35 | E7: 24.0 | F7: 1,164
A8: 财政补贴收入 | B8: 6,658 | C8: 6,166 | D8: 92.61 | E8: 7.2 | F8: 5,754
A9: 其他收入 | B9: 2,692 | C9: 4,648 | D9: 172.66 | E9: -42.2 | F9: 8,039
A10: 二、机关事业单位养老保险基金收入 | B10: 44,343 | C10: 41,706 | D10: 94.05 | E10: 10.1 | F10: 37,880
A11: 其中：保险费收入 | B11: 23,124 | C11: 25,280 | D11: 109.32 | E11: 49.8 | F11: 16,871
A12: 财政补贴收入 | B12: 20,000 | C12: 15,000 | D12: 75.00 | E12: -25.0 | F12: 20,000
A13: 其他收入 | B13: 1,219 | C13: 1,426 | D13: 116.98 | E13: 41.3 | F13: 1,009
A14: 社会保险基金收入合计 | B14: 54,892 | C14: 53,962 | D14: 98.31 | E14: 2.1 | F14: 52,837
A15: 其中：保险费收入 | B15: 24,322 | C15: 26,723 | D15: 109.87 | E15: 48.2 | F15: 18,035
A16: 财政补贴收入 | B16: 26,658 | C16: 21,166 | D16: 79.40 | E16: -17.8 | F16: 25,754
A17: 其他收入 | B17: 3,912 | C17: 6,073 | D17: 155.24 | E17: -32.9 | F17: 9,048

Sheet 表20.社保基金支出执行
A1: 表20
A2: 2023年槐荫区社会保险基金预算支出决算表
E3: 单位：万元
A4: 项目 | B4: 2023年预算数 | C4: 2023年决算数
C5: 金额 | D5: 占预期% | E5: 比上年增长%
A6: 一、城乡居民基本养老保险基金支出 | B6: 9,878 | C6: 10,260 | D6: 103.87 | E6: 19.1
A7: 其中：基本养老保险待遇金支出 | B7: 9,853 | C7: 10,181 | D7: 103.33 | E7: 18.5
A8: 其他支出 | B8: 25 | C8: 79 | D8: 316.00 | E8: 259.1
A9: 二、机关事业单位养老保险基金支出 | B9: 43,131 | C9: 43,976 | D9: 101.96 | E9: 8.8
A10: 其中：基本养老保险待遇金支出 | B10: 43,095 | C10: 43,893 | D10: 101.85 | E10: 8.7
A11: 其他支出 | B11: 36 | C11: 83 | D11: 230.56 | E11: 151.5
A12: 社会保险基金支出合计 | B12: 53,009 | C12: 54,236 | D12: 102.31 | E12: 10.7
A13: 其中：社会保险待遇金支出 | B13: 52,949 | C13: 54,074 | D13: 102.12 | E13: 10.4
A14: 其他支出 | B14: 60 | C14: 162 | D14: 270.00 | E14: 194.5

Sheet 表21.社保基金结余
A1: 表21
A2: 2023年槐荫区社会保险基金预算结余表
C3: 单位：万元
A4: 项目 | B4: 2023年决算数 | C4: 备注
A5: 一、社会保险基金本年收支结余合计 | B5: -274
A6: （一）城乡居民基本养老保险基金 | B6: 1,996
A7: （二）机关事业单位养老保险基金 | B7: -2,270
A8: 二、社会保险基金年末滚存结余合计 | B8: 83,981
A9: （一）城乡居民基本养老保险基金 | B9: 79,860
A10: （二）机关事业单位养老保险基金 | B10: 4,121

Sheet 表22.本级社保收入
A1: 表22
A2: 2023年槐荫区本级社会保险基金预算收入决算表
E3: 单位：万元
A4: 项目 | B4: 2023年预算数 | C4: 2023年决算数 | F4: 2022
C5: 金额 | D5: 占预算% | E5: 比上年增长%
A6: 一、城乡居民基本养老保险基金收入 | B6: 10,549 | C6: 12,257 | D6: 116.19 | E6: -18.1 | F6: 14,957
A7: 其中：保险费收入 | B7: 1,199 | C7: 1,443 | D7: 120.35 | E7: 24.0 | F7: 1,164
A8: 财政补贴收入 | B8: 6,658 | C8: 6,166 | D8: 92.61 | E8: 7.2 | F8: 5,754
A9: 其他收入 | B9: 2,692 | C9: 4,648 | D9: 172.66 | E9: -42.2 | F9: 8,039
A10: 二、机关事业单位养老保险基金收入 | B10: 44,343 | C10: 41,706 | D10: 94.05 | E10: 10.1 | F10: 37,880
A11: 其中：保险费收入 | B11: 23,124 | C11: 25,280 | D11: 109.32 | E11: 49.8 | F11: 16,871
A12: 财政补贴收入 | B12: 20,000 | C12: 15,000 | D12: 75.00 | E12: -25.0 | F12: 20,000
A13: 其他收入 | B13: 1,219 | C13: 1,426 | D13: 116.98 | E13: 41.3 | F13: 1,009
A14: 社会保险基金收入合计 | B14: 54,892 | C14: 53,962 | D14: 98.31 | E14: 2.1 | F14: 52,837
A15: 其中：保险费收入 | B15: 24,322 | C15: 26,723 | D15: 109.87 | E15: 48.2 | F15: 18,035
A16: 财政补贴收入 | B16: 26,658 | C16: 21,166 | D16: 79.40 | E16: -17.8 | F16: 25,754
A17: 其他收入 | B17: 3,912 | C17: 6,073 | D17: 155.24 | E17: -32.9 | F17: 9,048

Sheet 表23.本级社保支出
A1: 表23
A2: 2023年槐荫区本级社会保险基金预算支出决算表
E3: 单位：万元
A4: 项目 | B4: 2023年预算数 | C4: 2023年决算数 | F4: 2022
C5: 金额 | D5: 占预期% | E5: 比上年增长%
A6: 一、城乡居民基本养老保险基金支出 | B6: 9,878 | C6: 10,260 | D6: 103.87 | E6: 19.1 | F6: 8,614
A7: 其中：基本养老保险待遇金支出 | B7: 9,853 | C7: 10,181 | D7: 103.33 | E7: 18.5 | F7: 8,592
A8: 其他支出 | B8: 25 | C8: 79 | D8: 316.00 | E8: 259.1 | F8: 22
A9: 二、机关事业单位养老保险基金支出 | B9: 43,131 | C9: 43,976 | D9: 101.96 | E9: 8.8 | F9: 40,401
A10: 其中：基本养老保险待遇金支出 | B10: 43,095 | C10: 43,893 | D10: 101.85 | E10: 8.7 | F10: 40,368
A11: 其他支出 | B11: 36 | C11: 83 | D11: 230.56 | E11: 151.5 | F11: 33
A12: 社会保险基金支出合计 | B12: 53,009 | C12: 54,236 | D12: 102.31 | E12: 10.7 | F12: 49,015
A13: 其中：社会保险待遇金支出 | B13: 52,949 | C13: 54,074 | D13: 102.12 | E13: 10.4 | F13: 48,960
A14: 其他支出 | B14: 60 | C14: 162 | D14: 270.00 | E14: 194.5 | F14: 55

Sheet 表24.本级社保结余
A1: 表24
A2: 2023年槐荫区本级社会保险基金预算结余表
C3: 单位：万元
A4: 项目 | B4: 2023年决算数 | C4: 备注
A5: 一、社会保险基金本年收支结余合计 | B5: -274
A6: （一）城乡居民基本养老保险基金 | B6: 1,996
A7: （二）机关事业单位养老保险基金 | B7: -2,270
A8: 二、社会保险基金年末滚存结余合计 | B8: 83,981
A9: （一）城乡居民基本养老保险基金 | B9: 79,860
A10: （二）机关事业单位养老保险基金 | B10: 4,121

Sheet 表25.限额余额情况表
A1: 表25
A2: 2023年槐荫区地方政府债务限额余额情况表
D3: 单位：万元
A4: 地 区 | B4: 2022年政府债务余额 | C4: 2023年政府债务限额 | D4: 2023年政府债务余额
A5: 槐荫区 | B5: 391,624.08 | C5: 433,914.67 | D5: 429,424.08

Sheet 表26.一般限额余额
A1: 表26
A2: 2023年槐荫区地方政府一般债务限额余额情况表
D3: 单位：万元
A4: 地 区 | B4: 2022年政府一般债务余额 | C4: 2023年政府一般债务限额 | D4: 2023年政府一般债务余额
A5: 槐荫区 | B5: 56,324.08 | C5: 60,814.67 | D5: 56,324.08

Sheet 表27.专项限额余额
A1: 表27
A2: 2023年槐荫区地方政府专项债务限额余额情况表
D3: 单位：万元
A4: 地 区 | B4: 2022年政府专项债务余额 | C4: 2023年政府专项债务限额 | D4: 2023年政府专项债务余额
A5: 槐荫区 | B5: 335,300 | C5: 373,100 | D5: 373,100

Sheet 表28.债券发行情况
A1: 表28
A2: 2023年槐荫区地方政府债券发行情况表
H3: 单位：万元
A4: 地 区 | B4: 合计 | C4: 一般债券额度 | F4: 专项债券额度
C5: 小计 | D5: 新增一般 债券 | E5: 再融资债券 | F5: 小计 | G5: 新增专项 债券 | H5: 再融资 专项债券
A6: 槐荫区 | B6: 78,000 | C6: 12,000 | D6: 0 | E6: 12,000 | F6: 66,000 | G6: 37,800 | H6: 28,200

Sheet 表29.还本付息情况
A1: 表29
A2: 2023年槐荫区地方政府债券还本付息情况表
G3: 单位：万元
A4: 地 区 | B4: 政府债券还本支出 | E4: 政府债券付息支出
B5: 合计 | C5: 其中：一般公共预算和政府性基金预算安排债务还本支出 | D5: 其中：发行再融资债券还本支出 | E5: 合计 | F5: 一般债券付息支出 | G5: 专项债券付息支出
A6: 槐荫区 | B6: 40,200 | C6: 0 | D6: 40,200 | E6: =F6+G6 -> 13,882.76 | F6: 1,829.22 | G6: 12,053.54

Sheet 表30.专项债券分用途表
A1: 表30
A2: 2023年槐荫区地方政府新增专项债券分用途表
I3: 单位：万元
A4: 地 区 | B4: 小计 | C4: 交通 | D4: 农林水利建设 | E4: 保障性住房 | F4: 土地储备 | G4: 环境保护 | H4: 教科文卫 | I4: 市政建设
A5: 槐荫区 | B5: 37,800 | D5: 8,500 | E5: 24,200 | I5: 5,100

Sheet 表31.债务情况决算表
A1: 表31
A2: 2023年槐荫区地方政府债务收支决算表
B3: 单位：万元
A4: 项目 | B4: 金额
A5: 一、2022年末政府债务余额 | B5: =SUM(B6:B7) -> 391,624.08
A6: 其中：一般债务 | B6: 56,324.08
A7: 专项债务 | B7: 335,300
A8: 二、2022年末政府债务限额 | B8: =SUM(B9:B10) -> 407,620
A9: 其中：一般债务限额 | B9: 72,132
A10: 专项债务限额 | B10: 335,488
A11: 三、2023年地方政府债务举借额 | B11: 78,000
A12: 政府债券 | B12: 78,000
A13: 新增一般债券发行额 | B13: 0
A14: 再融资一般债券发行额 | B14: 12,000
A15: 新增专项债券发行额 | B15: 37,800
A16: 再融资专项债券发行额 | B16: 28,200
A17: 四、2023年地方政府债务还本额 | B17: =SUM(B18:B19) -> 40,200
A18: 其中：一般债务还本额 | B18: 12,000
A19: 专项债务还本额 | B19: 28,200
A20: 五、2023年地方政府债务付息 | B20: =SUM(B21:B22) -> 13,883
A21: 一般债务付息 | B21: 1,829.22
A22: 专项债务付息 | B22: 12,053.54
A23: 六、2023年末地方政府债务余额 | B23: =SUM(B24:B25) -> 429,424.08
A24: 其中：一般债务 | B24: 56,324.08
A25: 专项债务 | B25: 373,100
A26: 七、2023年地方政府债务限额 | B26: =SUM(B27:B28) -> 433,914.67
A27: 其中：一般债务 | B27: 60,814.67
A28: 专项债务 | B28: 373,100
